Cogmind - Beta 10.2 @@@ ROGUE MODE // 2020.12.30 @ 03:12:09 Player: WeirdFoe Result: Self-destructed Performance ------------- Evolutions (1) 500 Regions Visited (2) 400 Robots Destroyed (2) 10 Value Destroyed (20) 20 Prototype IDs (0) 0 Alien Tech Used (0) 0 Bonus (0) 0 TOTAL SCORE: 930 Bonus ------- None Cogmind --------- Core Integrity 400/400 Matter 127/300 Energy 6/125 System Corruption 0% Temperature Cool (0) Movement Flying (37) Location -9/Materials Parts ------- > --- POWER (1) -------- Light Ion Engine > --- PROPULSION (3) --- Flight Unit Flight Unit VTOL Module > --- UTILITY (3) ------ Visual Processing Unit Advanced Sensor Array Terrain Scanner > --- WEAPON (2) ------- Light Assault Rifle Datajack > --- INVENTORY (4) ---- Ion Engine Advanced Sensor Array Assault Rifle Peak State ------------ > --- POWER ------------ Light Ion Engine > --- PROPULSION ------- Flight Unit Flight Unit VTOL Module > --- UTILITY ---------- Visual Processing Unit Advanced Sensor Array Terrain Scanner > --- WEAPON ----------- Light Assault Rifle Datajack > --- INVENTORY -------- Ion Engine Advanced Sensor Array Assault Rifle [Rating: 13] Favorites ----------- Power Light Ion Engine Engine Light Ion Engine Propulsion Wheel Wheel Wheel Flight Unit Flight Unit Utility Terrain Scanner Device Terrain Scanner Storage High-capacity Storage Unit Processor Visual Processing Unit Weapon Light Assault Rifle Energy Gun Small Laser Ballistic Gun Light Assault Rifle Special Melee Weapon Datajack Build | -11 -10 -9 ------- Run | Scr Mat Mat Slots Evolved 2 | . . 2 Power . | . . . Propulsion 1 | . . 1 Utility 1 | . . 1 Weapon . | . . . Parts Attached 18 | 7 5 6 Power 3 | 1 . 2 Engine 3 | 1 . 2 Core . | . . . Reactor . | . . . Propulsion 5 | 2 2 1 Treads . | . . . Leg . | . . . Wheel 2 | 2 . . Hover . | . . . Flight 3 | . 2 1 Utility 6 | 1 3 2 Device 2 | . 1 1 Storage 3 | 1 2 . Processor 1 | . . 1 Hackware . | . . . Protection . | . . . Artifact . | . . . Weapon 4 | 3 . 1 Energy Gun 1 | 1 . . Energy Cannon . | . . . Ballistic Gun 2 | 2 . . Ballistic Cannon . | . . . Launcher . | . . . Special Weapon . | . . . Impact Weapon . | . . . Slashing Weapon . | . . . Piercing Weapon . | . . . Special Melee Weapon 1 | . . 1 Unidentified Prototypes . | . . . Parts Lost . | . . . Power . | . . . Propulsion . | . . . Utility . | . . . Weapon . | . . . Highest Loss Streak . | . . . Average Slot Usage (%) 94 | . 96 84 Engine 13 | . 14 11 Wheel 20 | . 24 . Flight 6 | . 3 22 Device 11 | . 8 22 Storage 13 | . 16 . Processor 1 | . . 7 Ballistic Gun 24 | . 28 11 Special Melee Weapon 2 | . . 11 Naked Turns . | . . . Heaviest Build 42 | 10 42 8 Greatest Support 20 | 20 20 8 Greatest Overweight (x) 2 | 1 2 . Average Overweight (x) . | . . . Largest Inventory Capacity 14 | 6 14 4 Average Capacity 8 | 5 10 4 Most Carried 7 | 2 7 3 Average Carried 3 | . 3 2 Final Capacity 6 | 6 4 4 Final Carried 3 | 2 2 3 Class Distribution -------------------- 100% | Mutant Dominant Class ---------------- Mutant | -10/Materials Mutant | -9/Materials Resources | -11 -10 -9 ----------- Run | Scr Mat Mat Matter Collected 231 | 231 . . Remotely . | . . . Salvage Created 30 | . 30 . Parts 6 | . 6 . Haulers Intercepted . | . . . Recyclers Shooed . | . . . Parts Field Recycled . | . . . Retrieved Matter . | . . . Parts Self-Destructed . | . . . Prevented . | . . . Kills | -11 -10 -9 ------- Run | Scr Mat Mat Combat Hostiles Destroyed 2 | . 2 . Guns 2 | . 2 . Classes Destroyed 1 | . 1 . Swarmer 2 | . 2 . Best Kill Streak 2 | . 2 . Combat Bots Only 2 | . 2 . Max Kills in Single Turn 1 | . 1 . Gunslinging . | . . . Exploded . | . . . Melee . | . . . Uniques/NPCs Destroyed . | . . . Combat | -11 -10 -9 -------- Run | Scr Mat Mat Damage Taken 282 | . 282 . Core 73 | . 73 . Absorbed by Shields . | . . . Core Remaining (%) 85 | 100 70 . Volleys Fired 6 | . 6 . Largest 2 | . 2 . Hottest 40 | . 40 . Shots Fired 12 | . 12 . Gun 12 | . 12 . Cannon . | . . . Launcher . | . . . Special . | . . . Kinetic 12 | . 12 . Thermal . | . . . Explosive . | . . . Electromagnetic . | . . . Robot Hit Streak 2 | . 2 . Robot Miss Streak 3 | . 3 . Penetration Max . | . . . Secondary Targets 2 | . 2 . Max Gunslinging Chain 1 | . 1 . Shots Hit Robots 6 | . 6 . Core Hits 3 | . 3 . Critical Hits . | . . . Critical Kills . | . . . Critical Parts Destroyed . | . . . Melee Attacks . | . . . Impact . | . . . Slashing . | . . . Piercing . | . . . Sneak Attacks . | . . . Combat Hostiles . | . . . Follow-up Attacks . | . . . Damage Inflicted 58 | . 58 . Guns 58 | . 58 . Cannons . | . . . Explosions . | . . . Melee . | . . . Ramming . | . . . Kinetic 58 | . 58 . Thermal . | . . . Explosive . | . . . Electromagnetic . | . . . Impact . | . . . Slashing . | . . . Piercing . | . . . Highest Corruption . | . . . Average Corruption . | . . . Corruption Purged . | . . . Overload Shots . | . . . Overflow Damage . | . . . Projectiles . | . . . Explosions . | . . . Melee . | . . . Knockbacks . | . . . Impact . | . . . Kinetic . | . . . Secondary . | . . . Self-Inflicted Damage . | . . . Shots . | . . . Rammed . | . . . Targets Rammed . | . . . Kicked . | . . . Crushed . | . . . Highest Temperature 6 | . 6 . Average Temperature 6 | . 6 . Received Heat Transfer 60 | . 60 . Siege Activations . | . . . Robots Corrupted . | . . . Combat Hostiles . | . . . Parts Fried . | . . . Impact Corruptions . | . . . Robots Melted . | . . . Combat Hostiles . | . . . Parts Melted . | . . . Heat Transferred . | . . . Parts Sabotaged . | . . . Parts Stolen . | . . . Parts Stripped . | . . . Power Chain Reactions . | . . . Missiles Intercepted . | . . . Alert | -11 -10 -9 ------- Run | Scr Mat Mat Peak Influence 65 | . 65 27 Initial 27 | . . 27 Average 11 | . 12 19 Maximum Alert Level . | . . . Low Security (%) 100 | 100 100 100 Level 1 . | . . . Level 2 . | . . . Level 3 . | . . . Level 4 . | . . . Level 5 . | . . . High Security . | . . . Max Security . | . . . Squads Dispatched 1 | . 1 . Investigation . | . . . Extermination . | . . . Reinforcement 1 | . 1 . Assault . | . . . Garrison . | . . . Intercept . | . . . Construction Impeded . | . . . Haulers Reinforced . | . . . Stealth | -11 -10 -9 --------- Run | Scr Mat Mat Distress Signals . | . . . Communications Jammed . | . . . Distress Signals . | . . . Times Spotted 8 | . 8 . Peak Tracking Total 5 | . 5 . Tactical Retreats . | . . . Traps | -11 -10 -9 ------- Run | Scr Mat Mat Traps Triggered . | . . . Indirectly . | . . . Trap Hack Attempts . | . . . Triggered . | . . . Disarmed . | . . . Reprogrammed . | . . . Reused . | . . . Traps Extracted . | . . . Installed . | . . . Triggered . | . . . Machines | -11 -10 -9 ---------- Run | Scr Mat Mat Machines Disabled . | . . . Max in Single Turn . | . . . Machines Sabotaged . | . . . Garrisons Compromised . | . . . Overloaded Fab Kills . | . . . Fab Network Shutdowns . | . . . Hacking | -11 -10 -9 --------- Run | Scr Mat Mat Machines Accessed 5 | . 1 4 Terminals 5 | . 1 4 Fabricators . | . . . Repair Stations . | . . . Recycling Units . | . . . Scanalyzers . | . . . Garrison Access . | . . . Total Hacks 9 | . 2 7 Successful 1 | . . 1 Failed 8 | . 2 6 Catastrophic 3 | . 1 2 Database Lockouts . | . . . Manual 9 | . 2 7 Terminals 9 | . 2 7 Fabricators . | . . . Repair Stations . | . . . Recycling Units . | . . . Scanalyzers . | . . . Garrison Access . | . . . Terminal Hacks 1 | . . 1 Unreport Threat 1 | . . 1 Fabricator Hacks . | . . . Repair Station Hacks . | . . . Recycling Unit Hacks . | . . . Scanalyzer . | . . . Garrison Access Hacks . | . . . Unauthorized Hacks . | . . . Terminals . | . . . Fabricators . | . . . Repair Stations . | . . . Recycling Units . | . . . Scanalyzers . | . . . Garrison Access . | . . . Data Cores Recovered . | . . . Used . | . . . Hacking Detections 3 | . . 3 Full Trace Events . | . . . Feedback Events . | . . . Feedback Blocked . | . . . Robot Schematics Acquired . | . . . Robots Built . | . . . Matter . | . . . Time . | . . . Total Robot Build Rating . | . . . Part Schematics Acquired . | . . . Parts Built . | . . . Matter . | . . . Time . | . . . Total Part Build Rating . | . . . Parts Repaired . | . . . Time . | . . . Parts Recycled . | . . . Recycled Matter . | . . . Retrieved Matter . | . . . Retrieved Components . | . . . Parts Scanalyzed . | . . . Part Schematics Acquired . | . . . Parts Damaged . | . . . Bothacking | -11 -10 -9 ------------ Run | Scr Mat Mat Used RIF Installer . | . . . Robots Hacked . | . . . Non-combat . | . . . Combat . | . . . Robot Hacks Applied . | . . . Relay Couplers Released . | . . . Robots Rewired . | . . . Allies Hacked . | . . . Hacks Repelled . | . . . Allies | -11 -10 -9 -------- Run | Scr Mat Mat Total Allies . | . . . Largest Group . | . . . Highest-Rated Group . | . . . Highest-Rated Ally . | . . . Total Orders . | . . . Ally Attacks . | . . . Total Damage . | . . . Kills . | . . . Allies Corrupted . | . . . Allies Melted . | . . . Intel | -11 -10 -9 ------- Run | Scr Mat Mat Robot Analysis Total . | . . . Derelict Logs Recovered . | . . . Drone Launches . | . . . Drone Recoveries . | . . . Exploration | -11 -10 -9 ------------- Run | Scr Mat Mat Turns Passed 201 | 42 131 28 Spaces Moved 211 | 37 126 48 Core 7 | 7 . . Treads . | . . . Legs . | . . . Wheels 129 | 30 99 . Hover . | . . . Flight 75 | . 27 48 Fastest Speed 37 | 50 37 37 Average Speed 68 | 78 78 37 Slowest Speed 100 | 100 100 37 Overloaded Moves . | . . . Propulsion Burnouts . | . . . Robots Hopped . | . . . Cave-ins Triggered . | . . . Exploration Rate (%) 14 | 3 31 8 Regions Visited 2 Branch Regions . Pre-discovered Areas . | . . . Known Exits Taken . | . . . Unknown Exits Taken 2 | 1 1 . Scrap Searched . | . . . Spaces Dug . | . . . Terrain Destroyed . | . . . Melee . | . . . Projectile . | . . . AOE . | . . . Terrain Rammed . | . . . Walls Destroyed . | . . . Machines Disabled . | . . . Actions | -11 -10 -9 --------- Run | Scr Mat Mat Total 247 | 46 146 55 Wait 1 | . 1 . Move 209 | 36 125 48 Hop . | . . . Pick Up 8 | 3 4 1 Fast Attach 11 | 5 3 3 Attach 1 | 1 . . Detach 1 | . 1 . Swap 6 | 1 2 3 Drop 4 | . 4 . Fire 6 | . 6 . Melee . | . . . Ram . | . . . Kick . | . . . Crush . | . . . Escape Stasis . | . . . Rewire . | . . . Trap . | . . . Miscellaneous . | . . . Route ------- -11/Scrapyard -10/Materials (discovered 2 exits: *Mat x2) -9/Materials History --------- Turn | Location | Event 26 | -11/Scrapyard | Discovered new exit (range 16) 43 | -11/Scrapyard | Entered Materials 109 | -10/Materials | Discovered new exit (range 15) 171 | -10/Materials | Discovered new exit (range 8) 174 | -10/Materials | Entered another Materials area 174 | -9/Materials | Evolved 2 slots: Propulsion x1, Utility x1 202 | -9/Materials | Self-destructed Last Messages --------------- 00156_ R-06 Scavenger collects Lgt. Ion Engine. 00158_ Acquired Flight Unit. 00160_ R-06 Scavenger collects Lgt. Assault Rifle. 00161_ G-34 Mercenary destroyed. 00162_ Dropped Hcp. Storage Unit. 00163_ R-06 Scavenger collects Sml. Laser. 00163_ Dropped Wheel. 00163_ Dropped Sml. Storage Unit. 00171_ EXIT=FOUND PARAMETERS=PROPULSION_1,UTILITY_1 LOCATION=UNKNOWN GOAL=ESCAPE 00176_ Acquired Adv. Sensor Array. 00185_ Acquired Visual Processing Unit. 00192_ Connecting with Terminal... 00192_ Current location identified: Materials >>Alert(Purge) Purged threat record, alert level lowered. 00193_ Connecting with Terminal... 00201_ Acquired VTOL Module. Map ----- +----------------------------------------------------+ | | | | | | | | | | | | | ?????????????????????????????????????????????????? | | ???????????????????####??????????????????????????? | | ??????????????###?#"""#??????????????????????????? | | ????????????###T###"T"###????????????????????????? | | ??????????### #????????????????????????? | | ??????????#"" #????????????????????????? | | ??????????#"T """ ########?????????????????? | | #######???#"" "T" # #?????????????????? | | !!==!!#???### # """ #?????????????????? | | !!== #?????# = # """ #?????????????????? | | ####### """ # """ #?????????????????? | | # ]# """ # #?????????????????? | | """ ! # """ #?????????????????? | | [ + k""" #?????????????????? | | # """ #?????????????????? | | ####### ####### # #?????????????????? | | ??????#######????## # """ #?????????????????? | | ??????????????????# # """ #?????????????????? | | ?????????????#????# # """ #?????????????????? | | ??????????????????# #@ #?????????????????? | | ??????????????????# ########?????????????????? | | ??????????#???????# ????????????????????????? | | ?????????#????????# ????????????????????????? | | ??????????????????# ????????????????????????? | | ??????????????????# ###???????????????????????? | | ??????????????????# ??????????????????????????? | | ??????????????????# ??????????????????????????? | | ??????????????????# ??????????????????????????? | | ??????????????????# ??????????????????????????? | | ??????????????????? ??????????????????????????? | | ????????????????????? ??????????????????????????? | | ?????????????????????????????????????????????????? | | ?????????????????????????????????????????????????? | | ?????????????????????????????????????????????????? | | ?????????????????????????????????????????????????? | | ?????????????????????????????????????????????????? | | ?????????????????????????????????????????????????? | | ?????????????????????????????????????????????????? | | ?????????????????????????????????????????????????? | | ?????????????????????????????????????????????????? | | ?????????????????????????????????????????????????? | | ?????????????????????????????????????????????????? | | ?????????????????????????????????????????????????? | | ?????????????????????????????????????????????????? | +----------------------------------------------------+ Best States ------------- Heat Dissipation 28 Energy Generation 10 Energy Capacity 125 Matter Stores 261 Matter Capacity 300 Sight Range 18 Robot Scan Range 16 Terrain Scan Range 14 Terrain Scan Density 10 Evasion (%) 62 Item Schematics ----------------- None Robot Schematics ------------------ None Fabricated ------------ Nothing Alien Tech Used ----------------- None Achievements -------------- None Challenges ------------ None Game ------ Seed FireSuspensionConverter Manual? 0 Play Time 00:09:29 Cumulative 17.0 hours Start 2020.12.30 @ 03:05:34 End 2020.12.30 @ 03:12:09 Sessions 1 Manual Loads 0 Difficulty Rogue Special Mode None Game No. 26 Rogue 26 Adventurer 0 Explorer 0 Win Type - Total 0 Types 0/0/0/0/0/0/0/0/0 Lore% 16 Gallery% 31 Achievement% 21 Wizard Run 0 Options --------- ASCII 0 Keyboard 0 Movement Numpad Keybinds 0 Fullscreen 2 Font 18/X11 Map View 76x50 Tactical HUD 1 Map Filters NONE Filters NONE Steam 0 RUN: 46e8c3c5-773e-43e9-8f68-b069a3d13415